[Event "Titled Tuesday Blitz March 14 Early 2023"]
[White "Reprintsev, Alexander"]
[Black "Skvortsov, Andrei"]
[WhiteFideId "14100541"]
[BlackFideId "24108600"]
[WhiteElo "2229"]
[BlackElo "2259"]
[Result "1/2-1/2"]
[Round "04"]
[TimeControl "180+2"]
[Date "2023.03.14"]
[WhiteClock "0:00:47"]
[BlackClock "0:00:40"]

1. e4 {[%clk 0:02:54]}  c5 {[%clk 0:03:00]} 2. b3 {[%clk 0:02:53]}  Nc6 {[%clk 0:02:59]} 3. Bb2 {[%clk 0:02:53]}  d6 {[%clk 0:02:57]} 4. f4 {[%clk 0:02:52]}  a6 {[%clk 0:02:56]} 5. Qf3 {[%clk 0:02:49]}  e5 {[%clk 0:02:53]} 6. Nc3 {[%clk 0:02:46]}  Nd4 {[%clk 0:02:52]} 7. Qd3 {[%clk 0:02:45]}  exf4 {[%clk 0:02:50]} 8. Nf3 {[%clk 0:02:45]}  Nxf3+ {[%clk 0:02:44]} 9. Qxf3 {[%clk 0:02:45]}  Qh4+ {[%clk 0:02:37]} 10. g3 {[%clk 0:02:45]}  fxg3 {[%clk 0:02:37]} 11. hxg3 {[%clk 0:02:45]}  Qf6 {[%clk 0:02:30]} 12. Qe3 {[%clk 0:02:45]}  Be6 {[%clk 0:02:26]} 13. O-O-O {[%clk 0:02:44]}  Qd8 {[%clk 0:02:19]} 14. Bc4 {[%clk 0:02:32]}  Qd7 {[%clk 0:02:13]} 15. Bxe6 {[%clk 0:02:30]}  fxe6 {[%clk 0:02:12]} 16. d4 {[%clk 0:02:28]}  cxd4 {[%clk 0:02:11]} 17. Qxd4 {[%clk 0:02:28]}  O-O-O {[%clk 0:02:10]} 18. Na4 {[%clk 0:02:24]}  Qc6 {[%clk 0:02:05]} 19. c4 {[%clk 0:02:20]}  Nf6 {[%clk 0:01:58]} 20. e5 {[%clk 0:02:20]}  Ne8 {[%clk 0:01:55]} 21. Qg4 {[%clk 0:02:16]}  d5 {[%clk 0:01:47]} 22. Kb1 {[%clk 0:02:11]}  dxc4 {[%clk 0:01:47]} 23. Rxd8+ {[%clk 0:02:10]}  Kxd8 {[%clk 0:01:47]} 24. Rc1 {[%clk 0:02:06]}  b5 {[%clk 0:01:43]} 25. Qd4+ {[%clk 0:01:31]}  Kc8 {[%clk 0:01:39]} 26. Nb6+ {[%clk 0:01:31]}  Kb7 {[%clk 0:01:39]} 27. Nd7 {[%clk 0:01:31]}  Nc7 {[%clk 0:01:31]} 28. bxc4 {[%clk 0:01:24]}  b4 {[%clk 0:01:29]} 29. Rf1 {[%clk 0:01:12]}  Be7 {[%clk 0:01:25]} 30. Rf7 {[%clk 0:01:12]}  Re8 {[%clk 0:00:59]} 31. Rxg7 {[%clk 0:01:12]}  h5 {[%clk 0:00:58]} 32. Bc1 {[%clk 0:00:58]}  Bf8 {[%clk 0:00:51]} 33. Rf7 {[%clk 0:00:53]}  Be7 {[%clk 0:00:48]} 34. Be3 {[%clk 0:00:52]}  Kc8 {[%clk 0:00:45]} 35. Nb6+ {[%clk 0:00:49]}  Kb7 {[%clk 0:00:44]} 36. Nd7 {[%clk 0:00:49]}  Kc8 {[%clk 0:00:41]} 37. Nb6+ {[%clk 0:00:47]}  Kb7 {[%clk 0:00:40]} 38. Nd7 {[%clk 0:00:47]} 1/2-1/2


[Site "https://www.chess.com"]

[Event "Titled Tuesday Blitz March 14 Early 2023"]
[White "Aradhya, Garg"]
[Black "Gireman, Ja"]
[WhiteFideId "25006746"]
[BlackFideId "5043794"]
[WhiteElo "2263"]
[BlackElo "2153"]
[Result "1-0"]
[Round "04"]
[TimeControl "180+2"]
[Date "2023.03.14"]
[WhiteClock "0:00:26"]
[BlackClock "0:00:10"]

1. d4 {[%clk 0:03:00]}  Nf6 {[%clk 0:02:59]} 2. c4 {[%clk 0:03:01]}  g6 {[%clk 0:02:59]} 3. Nf3 {[%clk 0:03:01]}  d5 {[%clk 0:03:00]} 4. cxd5 {[%clk 0:03:00]}  Nxd5 {[%clk 0:02:59]} 5. e4 {[%clk 0:02:59]}  Nb6 {[%clk 0:02:58]} 6. a4 {[%clk 0:02:58]}  a5 {[%clk 0:02:54]} 7. Nc3 {[%clk 0:02:58]}  Bg7 {[%clk 0:02:52]} 8. Be3 {[%clk 0:02:58]}  O-O {[%clk 0:02:52]} 9. h3 {[%clk 0:02:40]}  Bd7 {[%clk 0:02:46]} 10. Be2 {[%clk 0:02:37]}  Na6 {[%clk 0:02:37]} 11. O-O {[%clk 0:02:36]}  Rc8 {[%clk 0:02:36]} 12. Rc1 {[%clk 0:02:33]}  c5 {[%clk 0:02:35]} 13. Bxa6 {[%clk 0:02:31]}  bxa6 {[%clk 0:02:36]} 14. dxc5 {[%clk 0:02:30]}  Nc4 {[%clk 0:02:35]} 15. Bd4 {[%clk 0:02:28]}  Nxb2 {[%clk 0:02:26]} 16. Qc2 {[%clk 0:02:24]}  Bxd4 {[%clk 0:02:06]} 17. Nxd4 {[%clk 0:02:25]}  Nc4 {[%clk 0:02:05]} 18. Nb3 {[%clk 0:02:04]}  Ne5 {[%clk 0:01:53]} 19. Rfd1 {[%clk 0:02:03]}  Qe8 {[%clk 0:01:50]} 20. Nd5 {[%clk 0:01:52]}  Bxa4 {[%clk 0:01:44]} 21. Nb6 {[%clk 0:01:52]}  Rb8 {[%clk 0:01:38]} 22. Ra1 {[%clk 0:01:41]}  Bb5 {[%clk 0:01:05]} 23. Rxa5 {[%clk 0:01:37]}  Nc6 {[%clk 0:01:05]} 24. Ra3 {[%clk 0:01:34]}  Rb7 {[%clk 0:01:02]} 25. Qc3 {[%clk 0:01:24]}  Qb8 {[%clk 0:01:01]} 26. Nd7 {[%clk 0:01:19]}  Rd8 {[%clk 0:00:42]} 27. Nxb8 {[%clk 0:01:15]}  Rxd1+ {[%clk 0:00:43]} 28. Kh2 {[%clk 0:01:15]}  Rxb8 {[%clk 0:00:43]} 29. Na5 {[%clk 0:01:13]}  Nxa5 {[%clk 0:00:27]} 30. Qxa5 {[%clk 0:01:09]}  Rc1 {[%clk 0:00:20]} 31. Qc7 {[%clk 0:01:06]}  Re8 {[%clk 0:00:20]} 32. h4 {[%clk 0:00:59]}  Rc4 {[%clk 0:00:18]} 33. Re3 {[%clk 0:00:57]}  Kf8 {[%clk 0:00:17]} 34. Qe5 {[%clk 0:00:55]}  f6 {[%clk 0:00:17]} 35. Qc7 {[%clk 0:00:55]}  Kf7 {[%clk 0:00:17]} 36. h5 {[%clk 0:00:55]}  gxh5 {[%clk 0:00:16]} 37. e5 {[%clk 0:00:55]}  Rh4+ {[%clk 0:00:15]} 38. Kg1 {[%clk 0:00:55]}  f5 {[%clk 0:00:14]} 39. e6+ {[%clk 0:00:54]}  Kg6 {[%clk 0:00:14]} 40. Qe5 {[%clk 0:00:37]}  Rd8 {[%clk 0:00:14]} 41. Rg3+ {[%clk 0:00:34]}  Rg4 {[%clk 0:00:14]} 42. Rxg4+ {[%clk 0:00:34]}  hxg4 {[%clk 0:00:15]} 43. Qc7 {[%clk 0:00:29]}  Rd1+ {[%clk 0:00:14]} 44. Kh2 {[%clk 0:00:29]}  Kf6 {[%clk 0:00:15]} 45. Qc8 {[%clk 0:00:26]}  Re1 {[%clk 0:00:10]} 46. c6 {[%clk 0:00:26]}  Rxe6 {[%clk 0:00:10]} 47. c7 {[%clk 0:00:26]} 1-0


[Site "https://www.chess.com"]

[Event "Titled Tuesday Blitz March 14 Early 2023"]
[White "Atakhan, Abtin"]
[Black "Bas Mas, Jose Joaquin"]
[WhiteFideId "22502203"]
[BlackFideId "22219064"]
[WhiteElo "2008"]
[BlackElo "2233"]
[Result "1/2-1/2"]
[Round "04"]
[TimeControl "180+2"]
[Date "2023.03.14"]
[WhiteClock "0:00:20"]
[BlackClock "0:00:25"]

1. c4 {[%clk 0:03:00]}  e6 {[%clk 0:02:59]} 2. Nf3 {[%clk 0:03:01]}  d5 {[%clk 0:02:59]} 3. g3 {[%clk 0:03:01]}  Nf6 {[%clk 0:02:59]} 4. Bg2 {[%clk 0:03:01]}  Be7 {[%clk 0:02:57]} 5. O-O {[%clk 0:03:01]}  O-O {[%clk 0:02:57]} 6. b3 {[%clk 0:03:02]}  d4 {[%clk 0:02:56]} 7. e3 {[%clk 0:03:02]}  c5 {[%clk 0:02:56]} 8. exd4 {[%clk 0:03:03]}  cxd4 {[%clk 0:02:57]} 9. Bb2 {[%clk 0:03:03]}  Nc6 {[%clk 0:02:53]} 10. Re1 {[%clk 0:03:04]}  Bc5 {[%clk 0:02:27]} 11. d3 {[%clk 0:02:53]}  Qc7 {[%clk 0:02:21]} 12. Qe2 {[%clk 0:02:27]}  Re8 {[%clk 0:02:08]} 13. a3 {[%clk 0:02:22]}  a5 {[%clk 0:02:04]} 14. Ne5 {[%clk 0:02:17]}  Nxe5 {[%clk 0:01:59]} 15. Qxe5 {[%clk 0:02:18]}  Qxe5 {[%clk 0:01:58]} 16. Rxe5 {[%clk 0:02:19]}  Bd6 {[%clk 0:01:58]} 17. Rb5 {[%clk 0:02:14]}  e5 {[%clk 0:01:57]} 18. Bxb7 {[%clk 0:01:58]}  Bxb7 {[%clk 0:01:54]} 19. Rxb7 {[%clk 0:01:59]}  Rab8 {[%clk 0:01:54]} 20. Rxb8 {[%clk 0:01:59]}  Rxb8 {[%clk 0:01:54]} 21. Nd2 {[%clk 0:02:00]}  Nd7 {[%clk 0:01:49]} 22. Ne4 {[%clk 0:00:59]}  Bf8 {[%clk 0:01:46]} 23. b4 {[%clk 0:00:52]}  f5 {[%clk 0:01:38]} 24. Nd2 {[%clk 0:00:48]}  axb4 {[%clk 0:01:37]} 25. axb4 {[%clk 0:00:49]}  Bxb4 {[%clk 0:01:38]} 26. Nf3 {[%clk 0:00:47]}  Bc5 {[%clk 0:01:31]} 27. Ba3 {[%clk 0:00:45]}  Ra8 {[%clk 0:01:28]} 28. Bb2 {[%clk 0:00:45]}  Rxa1+ {[%clk 0:01:27]} 29. Bxa1 {[%clk 0:00:46]}  h6 {[%clk 0:01:25]} 30. h4 {[%clk 0:00:42]}  Kf7 {[%clk 0:01:22]} 31. Kf1 {[%clk 0:00:40]}  Ke6 {[%clk 0:01:21]} 32. Ke2 {[%clk 0:00:38]}  Be7 {[%clk 0:01:09]} 33. Bb2 {[%clk 0:00:35]}  g5 {[%clk 0:01:08]} 34. hxg5 {[%clk 0:00:35]}  hxg5 {[%clk 0:01:09]} 35. Nd2 {[%clk 0:00:27]}  g4 {[%clk 0:01:07]} 36. Nb3 {[%clk 0:00:27]}  Nc5 {[%clk 0:01:05]} 37. Nxc5+ {[%clk 0:00:15]}  Bxc5 {[%clk 0:01:04]} 38. f3 {[%clk 0:00:16]}  gxf3+ {[%clk 0:01:04]} 39. Kxf3 {[%clk 0:00:17]}  Bb4 {[%clk 0:00:57]} 40. g4 {[%clk 0:00:16]}  Bc3 {[%clk 0:00:45]} 41. gxf5+ {[%clk 0:00:13]}  Kxf5 {[%clk 0:00:45]} 42. Ba3 {[%clk 0:00:14]}  Ba5 {[%clk 0:00:41]} 43. Bd6 {[%clk 0:00:14]}  Ke6 {[%clk 0:00:39]} 44. Bb8 {[%clk 0:00:14]}  Bd8 {[%clk 0:00:33]} 45. Ba7 {[%clk 0:00:13]}  Bc7 {[%clk 0:00:32]} 46. Bc5 {[%clk 0:00:13]}  Kf5 {[%clk 0:00:32]} 47. Bf8 {[%clk 0:00:08]}  Ke6 {[%clk 0:00:32]} 48. Ke4 {[%clk 0:00:08]}  Bd8 {[%clk 0:00:28]} 49. Ba3 {[%clk 0:00:08]}  Bc7 {[%clk 0:00:28]} 50. Bc5 {[%clk 0:00:08]}  Bb8 {[%clk 0:00:27]} 51. Bb6 {[%clk 0:00:07]}  Kd6 {[%clk 0:00:27]} 52. Bd8 {[%clk 0:00:06]}  Ke6 {[%clk 0:00:27]} 53. c5 {[%clk 0:00:04]}  Kd7 {[%clk 0:00:28]} 54. Bf6 {[%clk 0:00:04]}  Ke6 {[%clk 0:00:28]} 55. Bg7 {[%clk 0:00:04]}  Bc7 {[%clk 0:00:28]} 56. Bh8 {[%clk 0:00:04]}  Bb8 {[%clk 0:00:28]} 57. Bg7 {[%clk 0:00:03]}  Bc7 {[%clk 0:00:28]} 58. Bf8 {[%clk 0:00:04]}  Bb8 {[%clk 0:00:28]} 59. Bh6 {[%clk 0:00:04]}  Bc7 {[%clk 0:00:28]} 60. Bg5 {[%clk 0:00:04]}  Bb8 {[%clk 0:00:28]} 61. Bd8 {[%clk 0:00:05]}  Kd7 {[%clk 0:00:28]} 62. Ba5 {[%clk 0:00:04]}  Kc6 {[%clk 0:00:26]} 63. Bb4 {[%clk 0:00:04]}  Bc7 {[%clk 0:00:27]} 64. Ba3 {[%clk 0:00:04]}  Bb8 {[%clk 0:00:26]} 65. Bb4 {[%clk 0:00:04]}  Bc7 {[%clk 0:00:23]} 66. Be1 {[%clk 0:00:03]}  Kxc5 {[%clk 0:00:22]} 67. Bg3 {[%clk 0:00:04]}  Kc6 {[%clk 0:00:15]} 68. Bxe5 {[%clk 0:00:04]}  Bxe5 {[%clk 0:00:15]} 69. Kxe5 {[%clk 0:00:05]}  Kc5 {[%clk 0:00:16]} 70. Ke4 {[%clk 0:00:06]}  Kc6 {[%clk 0:00:16]} 71. Kxd4 {[%clk 0:00:06]}  Kd6 {[%clk 0:00:17]} 72. Ke3 {[%clk 0:00:07]}  Kd5 {[%clk 0:00:17]} 73. Kd2 {[%clk 0:00:07]}  Kd4 {[%clk 0:00:18]} 74. Kc2 {[%clk 0:00:08]}  Kd5 {[%clk 0:00:18]} 75. Kc3 {[%clk 0:00:09]}  Kc5 {[%clk 0:00:19]} 76. Kb3 {[%clk 0:00:08]}  Kd4 {[%clk 0:00:19]} 77. Kc2 {[%clk 0:00:09]}  Kd5 {[%clk 0:00:19]} 78. Kd2 {[%clk 0:00:10]}  Kd4 {[%clk 0:00:20]} 79. Ke2 {[%clk 0:00:10]}  Kd5 {[%clk 0:00:20]} 80. Ke3 {[%clk 0:00:11]}  Ke5 {[%clk 0:00:21]} 81. d4+ {[%clk 0:00:12]}  Kd5 {[%clk 0:00:21]} 82. Kd3 {[%clk 0:00:13]}  Kd6 {[%clk 0:00:22]} 83. Kd2 {[%clk 0:00:13]}  Kd5 {[%clk 0:00:22]} 84. Kc3 {[%clk 0:00:14]}  Kd6 {[%clk 0:00:22]} 85. Kc4 {[%clk 0:00:15]}  Kc6 {[%clk 0:00:22]} 86. d5+ {[%clk 0:00:16]}  Kd6 {[%clk 0:00:23]} 87. Kd4 {[%clk 0:00:17]}  Kd7 {[%clk 0:00:23]} 88. Ke4 {[%clk 0:00:17]}  Kd6 {[%clk 0:00:24]} 89. Kd4 {[%clk 0:00:18]}  Kd7 {[%clk 0:00:24]} 90. Kc5 {[%clk 0:00:19]}  Kc7 {[%clk 0:00:24]} 91. Kc4 {[%clk 0:00:19]}  Kd6 {[%clk 0:00:25]} 92. Kd4 {[%clk 0:00:20]} 1/2-1/2


[Site "https://www.chess.com"]

[Event "Titled Tuesday Blitz March 14 Early 2023"]
[White "Schmakel, Sam"]
[Black "Klepikov, Nikita"]
[WhiteFideId "2039311"]
[BlackFideId "24145220"]
[WhiteElo "2356"]
[BlackElo "2025"]
[Result "1-0"]
[Round "04"]
[TimeControl "180+2"]
[Date "2023.03.14"]
[WhiteClock "0:00:44"]
[BlackClock "0:00:19"]

1. c4 {[%clk 0:03:00]}  e5 {[%clk 0:02:59]} 2. Nc3 {[%clk 0:02:57]}  Nf6 {[%clk 0:03:00]} 3. Nf3 {[%clk 0:02:56]}  Nc6 {[%clk 0:03:00]} 4. e4 {[%clk 0:02:56]}  Bb4 {[%clk 0:02:57]} 5. d3 {[%clk 0:02:55]}  O-O {[%clk 0:02:42]} 6. Be2 {[%clk 0:02:48]}  Re8 {[%clk 0:01:36]} 7. O-O {[%clk 0:02:45]}  Nd4 {[%clk 0:01:34]} 8. Bg5 {[%clk 0:02:00]}  h6 {[%clk 0:01:13]} 9. Bxf6 {[%clk 0:01:53]}  gxf6 {[%clk 0:00:53]} 10. Nd5 {[%clk 0:01:09]}  Bf8 {[%clk 0:00:51]} 11. Nh4 {[%clk 0:01:02]}  c6 {[%clk 0:00:51]} 12. Ne3 {[%clk 0:01:02]}  d6 {[%clk 0:00:51]} 13. Bg4 {[%clk 0:01:01]}  Be6 {[%clk 0:00:42]} 14. Nhf5 {[%clk 0:00:56]}  c5 {[%clk 0:00:33]} 15. Bh3 {[%clk 0:00:52]}  Kh7 {[%clk 0:00:32]} 16. Qh5 {[%clk 0:00:50]}  Qd7 {[%clk 0:00:25]} 17. Ng4 {[%clk 0:00:44]}  Bxf5 {[%clk 0:00:19]} 18. Nxf6+ {[%clk 0:00:44]} 1-0


[Site "https://www.chess.com"]

[Event "Titled Tuesday Blitz March 14 Early 2023"]
[White "Tanenbaum, Zachary"]
[Black "Perez Rodriguez, Jennifer"]
[WhiteFideId "2060850"]
[BlackFideId "3507831"]
[WhiteElo "2175"]
[BlackElo "2170"]
[Result "0-1"]
[Round "04"]
[TimeControl "180+2"]
[Date "2023.03.14"]
[WhiteClock "0:00:10"]
[BlackClock "0:00:35"]

1. e4 {[%clk 0:03:00]}  e5 {[%clk 0:02:59]} 2. Nf3 {[%clk 0:03:01]}  Nc6 {[%clk 0:03:00]} 3. Bc4 {[%clk 0:03:01]}  Bc5 {[%clk 0:02:59]} 4. c3 {[%clk 0:03:01]}  Nf6 {[%clk 0:02:59]} 5. d4 {[%clk 0:03:01]}  exd4 {[%clk 0:02:59]} 6. b4 {[%clk 0:03:02]}  Bb6 {[%clk 0:02:51]} 7. e5 {[%clk 0:03:02]}  Ne4 {[%clk 0:02:36]} 8. b5 {[%clk 0:02:57]}  Ne7 {[%clk 0:02:23]} 9. Bd3 {[%clk 0:02:21]}  d5 {[%clk 0:02:21]} 10. cxd4 {[%clk 0:02:16]}  Bg4 {[%clk 0:02:20]} 11. Be3 {[%clk 0:02:15]}  O-O {[%clk 0:02:16]} 12. O-O {[%clk 0:02:14]}  f6 {[%clk 0:02:15]} 13. Nbd2 {[%clk 0:01:55]}  fxe5 {[%clk 0:02:06]} 14. Nxe4 {[%clk 0:01:38]}  dxe4 {[%clk 0:02:05]} 15. Bxe4 {[%clk 0:01:37]}  exd4 {[%clk 0:02:05]} 16. Bxh7+ {[%clk 0:01:25]}  Kxh7 {[%clk 0:01:47]} 17. Ng5+ {[%clk 0:01:25]}  Kg8 {[%clk 0:01:46]} 18. Qxg4 {[%clk 0:01:26]}  Qd5 {[%clk 0:01:26]} 19. Ne6 {[%clk 0:01:12]}  Nf5 {[%clk 0:01:01]} 20. Nxf8 {[%clk 0:00:59]}  dxe3 {[%clk 0:01:02]} 21. Ng6 {[%clk 0:00:59]}  exf2+ {[%clk 0:00:58]} 22. Kh1 {[%clk 0:00:59]}  Re8 {[%clk 0:00:43]} 23. Qh5 {[%clk 0:00:31]}  Ng3+ {[%clk 0:00:42]} 24. hxg3 {[%clk 0:00:28]}  Qxh5+ {[%clk 0:00:43]} 25. Nh4 {[%clk 0:00:28]}  g5 {[%clk 0:00:42]} 26. a4 {[%clk 0:00:23]}  gxh4 {[%clk 0:00:41]} 27. g4 {[%clk 0:00:23]}  Qxg4 {[%clk 0:00:39]} 28. a5 {[%clk 0:00:23]}  h3 {[%clk 0:00:38]} 29. Rxf2 {[%clk 0:00:10]}  Bxf2 {[%clk 0:00:36]} 30. g3 {[%clk 0:00:10]}  Qf3+ {[%clk 0:00:35]} 0-1


[Site "https://www.chess.com"]

[Event "Titled Tuesday Blitz March 14 Early 2023"]
[White "Bortnyk, Olexandr"]
[Black "Kiseleva, Arina"]
[WhiteFideId "14120828"]
[BlackFideId "4164989"]
[WhiteElo "2734"]
[BlackElo "1756"]
[Result "1-0"]
[Round "04"]
[TimeControl "180+2"]
[Date "2023.03.14"]
[WhiteClock "0:03:00"]
[BlackClock "0:01:30"]

1. d4 {[%clk 0:03:00]}  Nf6 {[%clk 0:02:59]} 2. Nc3 {[%clk 0:03:00]}  d5 {[%clk 0:02:58]} 3. Bf4 {[%clk 0:03:00]}  c6 {[%clk 0:02:54]} 4. e3 {[%clk 0:03:00]}  Bf5 {[%clk 0:02:52]} 5. Nf3 {[%clk 0:03:00]}  e6 {[%clk 0:02:52]} 6. Ne5 {[%clk 0:03:01]}  Bd6 {[%clk 0:02:51]} 7. g4 {[%clk 0:03:01]}  Bg6 {[%clk 0:02:12]} 8. h4 {[%clk 0:03:00]}  h6 {[%clk 0:01:59]} 9. Nxg6 {[%clk 0:03:00]}  fxg6 {[%clk 0:01:58]} 10. Bd3 {[%clk 0:03:01]}  Kf7 {[%clk 0:01:55]} 11. Qf3 {[%clk 0:03:01]}  g5 {[%clk 0:01:31]} 12. Bxd6 {[%clk 0:02:59]}  Qxd6 {[%clk 0:01:30]} 13. hxg5 {[%clk 0:03:00]} 1-0


[Site "https://www.chess.com"]

[Event "Titled Tuesday Blitz March 14 Early 2023"]
[White "Shuvalov, Evgenij"]
[Black "Cornette, Matthieu"]
[WhiteFideId "4187237"]
[BlackFideId "620084"]
[WhiteElo "2080"]
[BlackElo "2478"]
[Result "0-1"]
[Round "04"]
[TimeControl "180+2"]
[Date "2023.03.14"]
[WhiteClock "0:01:07"]
[BlackClock "0:00:31"]

1. d4 {[%clk 0:03:00]}  Nf6 {[%clk 0:02:56]} 2. c4 {[%clk 0:03:00]}  b6 {[%clk 0:02:55]} 3. f3 {[%clk 0:02:59]}  Nc6 {[%clk 0:02:53]} 4. d5 {[%clk 0:02:54]}  Ne5 {[%clk 0:02:48]} 5. e4 {[%clk 0:02:54]}  e6 {[%clk 0:02:47]} 6. a3 {[%clk 0:02:52]}  a5 {[%clk 0:02:38]} 7. Be3 {[%clk 0:02:51]}  Bc5 {[%clk 0:02:37]} 8. Bxc5 {[%clk 0:02:48]}  bxc5 {[%clk 0:02:38]} 9. Nc3 {[%clk 0:02:36]}  O-O {[%clk 0:02:36]} 10. Nh3 {[%clk 0:02:33]}  d6 {[%clk 0:02:34]} 11. Nf2 {[%clk 0:02:33]}  Ba6 {[%clk 0:02:27]} 12. b3 {[%clk 0:02:31]}  c6 {[%clk 0:02:10]} 13. dxe6 {[%clk 0:02:22]}  fxe6 {[%clk 0:02:11]} 14. Be2 {[%clk 0:02:22]}  Nh5 {[%clk 0:02:07]} 15. g3 {[%clk 0:02:15]}  Nxf3+ {[%clk 0:01:56]} 16. Bxf3 {[%clk 0:02:14]}  Qf6 {[%clk 0:01:56]} 17. O-O {[%clk 0:02:02]}  Qxf3 {[%clk 0:01:55]} 18. Qxf3 {[%clk 0:01:55]}  Rxf3 {[%clk 0:01:54]} 19. Rac1 {[%clk 0:01:52]}  Rb8 {[%clk 0:01:48]} 20. e5 {[%clk 0:01:48]}  dxe5 {[%clk 0:01:19]} 21. Nfe4 {[%clk 0:01:39]}  Rxf1+ {[%clk 0:01:15]} 22. Kxf1 {[%clk 0:01:36]}  Rxb3 {[%clk 0:01:14]} 23. Nxc5 {[%clk 0:01:34]}  Bxc4+ {[%clk 0:01:14]} 24. Kg2 {[%clk 0:01:33]}  Rxa3 {[%clk 0:01:12]} 25. Kh3 {[%clk 0:01:23]}  Bd5 {[%clk 0:00:54]} 26. Nxd5 {[%clk 0:01:16]}  exd5 {[%clk 0:00:55]} 27. Ne6 {[%clk 0:01:12]}  Nf4+ {[%clk 0:00:51]} 28. Nxf4 {[%clk 0:01:12]}  exf4 {[%clk 0:00:52]} 29. Rxc6 {[%clk 0:01:12]}  fxg3 {[%clk 0:00:48]} 30. hxg3 {[%clk 0:01:13]}  a4 {[%clk 0:00:47]} 31. Rd6 {[%clk 0:01:12]}  Rd3 {[%clk 0:00:47]} 32. Ra6 {[%clk 0:01:12]}  a3 {[%clk 0:00:47]} 33. Kg4 {[%clk 0:01:12]}  Kf7 {[%clk 0:00:47]} 34. Kf5 {[%clk 0:01:12]}  Rxg3 {[%clk 0:00:44]} 35. Ra7+ {[%clk 0:01:12]}  Ke8 {[%clk 0:00:44]} 36. Ke6 {[%clk 0:01:12]}  Re3+ {[%clk 0:00:34]} 37. Kxd5 {[%clk 0:01:12]}  Kf8 {[%clk 0:00:34]} 38. Kd4 {[%clk 0:01:10]}  Rg3 {[%clk 0:00:34]} 39. Ke5 {[%clk 0:01:09]}  h5 {[%clk 0:00:34]} 40. Kf4 {[%clk 0:01:08]}  h4 {[%clk 0:00:33]} 41. Kf5 {[%clk 0:01:07]}  h3 {[%clk 0:00:31]} 42. Ke6 {[%clk 0:01:07]}  Kg8 {[%clk 0:00:31]} 0-1


[Site "https://www.chess.com"]

[Event "Titled Tuesday Blitz March 14 Early 2023"]
[White "Rakhmatullaev, Almas"]
[Black "Fiorito, Joaquin"]
[WhiteFideId "14205793"]
[BlackFideId "180173"]
[WhiteElo "2221"]
[BlackElo "2157"]
[Result "1-0"]
[Round "04"]
[TimeControl "180+2"]
[Date "2023.03.14"]
[WhiteClock "0:00:28"]
[BlackClock "0:00:04"]

1. e4 {[%clk 0:03:00]}  c6 {[%clk 0:02:59]} 2. Nf3 {[%clk 0:03:00]}  d5 {[%clk 0:02:59]} 3. d3 {[%clk 0:03:00]}  g6 {[%clk 0:02:59]} 4. exd5 {[%clk 0:03:00]}  cxd5 {[%clk 0:02:59]} 5. d4 {[%clk 0:03:00]}  Nf6 {[%clk 0:02:58]} 6. Bd3 {[%clk 0:03:00]}  Bg7 {[%clk 0:02:59]} 7. c3 {[%clk 0:03:00]}  O-O {[%clk 0:03:00]} 8. O-O {[%clk 0:03:01]}  Nc6 {[%clk 0:03:01]} 9. Re1 {[%clk 0:03:00]}  Bf5 {[%clk 0:03:01]} 10. h3 {[%clk 0:02:54]}  Bxd3 {[%clk 0:02:59]} 11. Qxd3 {[%clk 0:02:54]}  e6 {[%clk 0:03:00]} 12. Bf4 {[%clk 0:02:49]}  a6 {[%clk 0:02:55]} 13. Nbd2 {[%clk 0:02:48]}  Nd7 {[%clk 0:02:50]} 14. Re2 {[%clk 0:02:46]}  b5 {[%clk 0:02:43]} 15. Rae1 {[%clk 0:02:44]}  b4 {[%clk 0:02:41]} 16. c4 {[%clk 0:02:12]}  dxc4 {[%clk 0:02:40]} 17. Qxc4 {[%clk 0:02:10]}  Rc8 {[%clk 0:02:26]} 18. Qxa6 {[%clk 0:02:06]}  Nxd4 {[%clk 0:02:14]} 19. Nxd4 {[%clk 0:02:06]}  Bxd4 {[%clk 0:02:14]} 20. Nf3 {[%clk 0:02:05]}  Qb6 {[%clk 0:02:04]} 21. Qd3 {[%clk 0:02:01]}  e5 {[%clk 0:02:03]} 22. Nxe5 {[%clk 0:01:52]}  Nxe5 {[%clk 0:01:54]} 23. Bxe5 {[%clk 0:01:52]}  Bxe5 {[%clk 0:01:50]} 24. Rxe5 {[%clk 0:01:53]}  Rfd8 {[%clk 0:01:50]} 25. Qe2 {[%clk 0:01:48]}  b3 {[%clk 0:01:41]} 26. Rb5 {[%clk 0:01:40]}  Qa6 {[%clk 0:01:16]} 27. axb3 {[%clk 0:01:39]}  Re8 {[%clk 0:00:58]} 28. Re5 {[%clk 0:01:37]}  Rxe5 {[%clk 0:00:45]} 29. Qxe5 {[%clk 0:01:38]}  Qb6 {[%clk 0:00:36]} 30. Re3 {[%clk 0:01:33]}  Qb4 {[%clk 0:00:29]} 31. Rc3 {[%clk 0:01:19]}  Rd8 {[%clk 0:00:25]} 32. Kh2 {[%clk 0:01:13]}  Qb7 {[%clk 0:00:18]} 33. h4 {[%clk 0:01:00]}  Qb4 {[%clk 0:00:17]} 34. Rh3 {[%clk 0:00:55]}  h5 {[%clk 0:00:15]} 35. Qf6 {[%clk 0:00:47]}  Re8 {[%clk 0:00:14]} 36. Rf3 {[%clk 0:00:44]}  Re7 {[%clk 0:00:08]} 37. Rd3 {[%clk 0:00:42]}  Re8 {[%clk 0:00:08]} 38. g3 {[%clk 0:00:36]}  Qb7 {[%clk 0:00:03]} 39. Rd8 {[%clk 0:00:28]}  Rxd8 {[%clk 0:00:03]} 40. Qxd8+ {[%clk 0:00:29]}  Kh7 {[%clk 0:00:03]} 41. Qd3 {[%clk 0:00:29]}  Qb6 {[%clk 0:00:03]} 42. Kg2 {[%clk 0:00:28]}  Qc6+ {[%clk 0:00:03]} 43. Qf3 {[%clk 0:00:28]}  Qc7 {[%clk 0:00:03]} 44. b4 {[%clk 0:00:28]}  Kg7 {[%clk 0:00:03]} 45. Qc3+ {[%clk 0:00:27]}  Qxc3 {[%clk 0:00:04]} 46. bxc3 {[%clk 0:00:28]} 1-0


[Site "https://www.chess.com"]